[Event "*** Titled Tuesday Blitz"]
[Site "Chess.com"]
[Date "2018.04.03"]
[Round "9"]
[White "amatatanav"]
[Black "Kislov_Oleg"]
[Result "0-1"]
[WhiteElo "2375"]
[BlackElo "2277"]
[TimeControl "180+2"]
[EndTime "14:58:55 PDT"]
[Termination "Kislov_Oleg won on time"]

1. e4 {[%clk 0:03:01.9]} 1... e6 {[%clk 0:03:00.3]} 2. d4 {[%clk 0:03:02.2]}
2... d5 {[%clk 0:03:01.7]} 3. Nc3 {[%clk 0:03:03.6]} 3... Nf6 {[%clk 0:03:02.5]}
4. Bg5 {[%clk 0:03:02.5]} 4... dxe4 {[%clk 0:03:03]} 5. Nxe4 {[%clk 0:03:02.1]}
5... Be7 {[%clk 0:03:04.5]} 6. Bxf6 {[%clk 0:03:02.7]} 6... gxf6 {[%clk
0:03:05.4]} 7. Nf3 {[%clk 0:03:03.8]} 7... b6 {[%clk 0:03:06.9]} 8. Bd3 {[%clk
0:02:43.9]} 8... Bb7 {[%clk 0:03:07.7]} 9. Qd2 {[%clk 0:02:39.4]} 9... c6 {[%clk
0:02:55.7]} 10. O-O-O {[%clk 0:02:36]} 10... Qc7 {[%clk 0:02:55.2]} 11. Qh6
{[%clk 0:02:32.8]} 11... Nd7 {[%clk 0:02:54.3]} 12. Qg7 {[%clk 0:02:31]} 12...
Rf8 {[%clk 0:02:54.9]} 13. Qxh7 {[%clk 0:02:28.8]} 13... Qf4+ {[%clk 0:02:53.7]}
14. Kb1 {[%clk 0:02:27.4]} 14... O-O-O {[%clk 0:02:54.3]} 15. Rhe1 {[%clk
0:01:36.8]} 15... f5 {[%clk 0:02:50.2]} 16. Ng3 {[%clk 0:01:33.8]} 16... Nf6
{[%clk 0:02:44.9]} 17. Qh4 {[%clk 0:01:34.1]} 17... Qxh4 {[%clk 0:02:37.4]} 18.
Nxh4 {[%clk 0:01:36]} 18... Bd6 {[%clk 0:02:22.5]} 19. Nf3 {[%clk 0:01:34.3]}
19... Ng4 {[%clk 0:02:22.1]} 20. Nxf5 {[%clk 0:01:06.9]} 20... Bf4 {[%clk
0:02:13.3]} 21. Re2 {[%clk 0:00:31.5]} 21... Kc7 {[%clk 0:02:08.3]} 22. Ng3
{[%clk 0:00:29.6]} 22... Rh8 {[%clk 0:02:03.5]} 23. Re4 {[%clk 0:00:22.9]} 23...
Nxf2 {[%clk 0:02:01.1]} 24. Rxf4 {[%clk 0:00:23.7]} 24... Nxd1 {[%clk
0:02:01.5]} 25. Rxf7+ {[%clk 0:00:24.7]} 25... Kb8 {[%clk 0:02:02]} 26. Nf1
{[%clk 0:00:13]} 26... Nf2 {[%clk 0:02:02.1]} 27. Bc4 {[%clk 0:00:13.6]} 27...
e5 {[%clk 0:02:00.1]} 28. Nxe5 {[%clk 0:00:10]} 28... Rxd4 {[%clk 0:01:59.9]}
29. c3 {[%clk 0:00:10.5]} 29... Rd1+ {[%clk 0:01:51]} 30. Kc2 {[%clk 0:00:11.4]}
30... Re1 {[%clk 0:01:51.4]} 31. Ng6 {[%clk 0:00:06.9]} 31... Rh6 {[%clk
0:01:41.7]} 32. Ne7 {[%clk 0:00:03.9]} 32... Ne4 {[%clk 0:01:36.9]} 33. Bd3
{[%clk 0:00:03.4]} 33... Nd6 {[%clk 0:01:34.8]} 34. Rf8+ {[%clk 0:00:04.5]}
34... Kc7 {[%clk 0:01:35.3]} 35. Nd2 {[%clk 0:00:05.2]} 35... c5 {[%clk
0:01:34.8]} 36. Nf5 {[%clk 0:00:05.6]} 36... Nxf5 {[%clk 0:01:34.7]} 37. Rxf5
{[%clk 0:00:07.5]} 37... Rxh2 {[%clk 0:01:33.3]} 38. Rf7+ {[%clk 0:00:07.5]}
38... Kb8 {[%clk 0:01:31.2]} 39. Rf8+ {[%clk 0:00:08.2]} 39... Kc7 {[%clk
0:01:31.6]} 40. Rf7+ {[%clk 0:00:09.4]} 40... Kc6 {[%clk 0:01:25.7]} 41. Be4+
{[%clk 0:00:09.1]} 41... Rxe4 {[%clk 0:01:25.9]} 42. Nxe4 {[%clk 0:00:11]} 42...
Rxg2+ {[%clk 0:01:27.4]} 43. Rf2 {[%clk 0:00:11.3]} 43... Kc7 {[%clk 0:01:24.8]}
0-1

[Event "*** Titled Tuesday Blitz"]
[Site "Chess.com"]
[Date "2018.04.03"]
[Round "9"]
[White "Zufi1811"]
[Black "Firouzja2003"]
[Result "0-1"]
[WhiteElo "2461"]
[BlackElo "2735"]
[TimeControl "180+2"]
[EndTime "14:58:59 PDT"]
[Termination "Firouzja2003 won by resignation"]

1. e4 {[%clk 0:03:01.9]} 1... c6 {[%clk 0:03:00.3]} 2. d4 {[%clk 0:03:01]} 2...
d5 {[%clk 0:03:01.1]} 3. e5 {[%clk 0:03:01.3]} 3... Bf5 {[%clk 0:03:01.2]} 4.
Nf3 {[%clk 0:03:02.6]} 4... e6 {[%clk 0:03:02.4]} 5. Be2 {[%clk 0:03:04]} 5...
Ne7 {[%clk 0:03:03.1]} 6. O-O {[%clk 0:03:04.3]} 6... h6 {[%clk 0:03:04.4]} 7.
Nbd2 {[%clk 0:03:02.8]} 7... Nd7 {[%clk 0:03:04.7]} 8. Nb3 {[%clk 0:02:56.2]}
8... g5 {[%clk 0:03:05.1]} 9. Ne1 {[%clk 0:02:52.9]} 9... Qc7 {[%clk 0:03:03.1]}
10. Be3 {[%clk 0:02:49.2]} 10... Bg7 {[%clk 0:02:48.1]} 11. Bd3 {[%clk 0:02:42]}
11... b6 {[%clk 0:02:32.7]} 12. g4 {[%clk 0:02:32.8]} 12... Bxd3 {[%clk
0:02:30.9]} 13. cxd3 {[%clk 0:02:21.2]} 13... Ng6 {[%clk 0:02:28.9]} 14. Rc1
{[%clk 0:02:17.2]} 14... f6 {[%clk 0:02:21.2]} 15. exf6 {[%clk 0:01:59]} 15...
Bxf6 {[%clk 0:02:20]} 16. Ng2 {[%clk 0:01:57]} 16... Rf8 {[%clk 0:01:55.2]} 17.
f4 {[%clk 0:01:33.9]} 17... O-O-O {[%clk 0:01:52.8]} 18. a4 {[%clk 0:01:30.7]}
18... Kb7 {[%clk 0:01:37.6]} 19. Qd2 {[%clk 0:01:28.8]} 19... gxf4 {[%clk
0:01:28.4]} 20. Nxf4 {[%clk 0:01:30.7]} 20... Nxf4 {[%clk 0:01:30.3]} 21. Bxf4
{[%clk 0:01:30.6]} 21... e5 {[%clk 0:01:32.2]} 22. dxe5 {[%clk 0:01:17.4]} 22...
Bxe5 {[%clk 0:01:34.1]} 23. Bxh6 {[%clk 0:00:58.9]} 23... Rg8 {[%clk 0:01:31.3]}
24. h3 {[%clk 0:00:58.8]} 24... Rg6 {[%clk 0:01:29.1]} 25. d4 {[%clk 0:00:44.9]}
25... Rh8 {[%clk 0:01:25.5]} 26. Bg5 {[%clk 0:00:14.8]} 26... Rxh3 {[%clk
0:01:20.4]} 27. dxe5 {[%clk 0:00:15.1]} 27... Qxe5 {[%clk 0:01:14.9]} 28. Rf5
{[%clk 0:00:11.9]} 28... Qg3+ {[%clk 0:00:53.7]} 29. Qg2 {[%clk 0:00:11.1]}
29... Qxb3 {[%clk 0:00:51.8]} 30. Re1 {[%clk 0:00:06.8]} 30... Rg3 {[%clk
0:00:51.8]} 31. Re7 {[%clk 0:00:03]} 31... Rxg2+ {[%clk 0:00:52.5]} 32. Kxg2
{[%clk 0:00:04.9]} 32... Rg7 {[%clk 0:00:53.6]} 33. Rxg7 {[%clk 0:00:02.9]}
33... Qxb2+ {[%clk 0:00:53.8]} 34. Kg3 {[%clk 0:00:04.8]} 34... Qxg7 {[%clk
0:00:55.3]} 35. Bf4 {[%clk 0:00:06.7]} 35... Nf6 {[%clk 0:00:55.8]} 36. g5
{[%clk 0:00:07.6]} 36... Nh5+ {[%clk 0:00:56.2]} 37. Kg4 {[%clk 0:00:08.7]}
37... Nxf4 {[%clk 0:00:58.1]} 38. Kxf4 {[%clk 0:00:10.5]} 38... Ka6 {[%clk
0:00:59.1]} 39. Rf6 {[%clk 0:00:11.2]} 39... c5 {[%clk 0:00:59.9]} 40. Kf5
{[%clk 0:00:12]} 40... d4 {[%clk 0:01:00.3]} 41. g6 {[%clk 0:00:13.2]} 41...
Qd7+ {[%clk 0:00:59.8]} 42. Kg5 {[%clk 0:00:12.3]} 42... d3 {[%clk 0:01:00.9]}
43. Rf7 {[%clk 0:00:12.4]} 43... Qd5+ {[%clk 0:01:01.9]} 44. Kf6 {[%clk
0:00:13.4]} 44... d2 {[%clk 0:01:03.1]} 0-1

[Event "*** Titled Tuesday Blitz"]
[Site "Chess.com"]
[Date "2018.04.03"]
[Round "9"]
[White "LastHeroJr"]
[Black "ahmadzada13"]
[Result "0-1"]
[WhiteElo "2437"]
[BlackElo "2591"]
[TimeControl "180+2"]
[EndTime "14:59:08 PDT"]
[Termination "ahmadzada13 won on time"]

1. e4 {[%clk 0:03:01.9]} 1... c5 {[%clk 0:03:00.5]} 2. Nf3 {[%clk 0:03:02.2]}
2... e6 {[%clk 0:03:01.5]} 3. d4 {[%clk 0:03:03.3]} 3... cxd4 {[%clk 0:03:02.8]}
4. Nxd4 {[%clk 0:03:05.2]} 4... Nf6 {[%clk 0:03:03.8]} 5. Nc3 {[%clk 0:03:05.9]}
5... d6 {[%clk 0:03:05.1]} 6. g4 {[%clk 0:03:07]} 6... Nc6 {[%clk 0:03:06.3]} 7.
g5 {[%clk 0:03:07.7]} 7... Nd7 {[%clk 0:03:07.6]} 8. Be3 {[%clk 0:03:09]} 8...
Be7 {[%clk 0:03:08.9]} 9. h4 {[%clk 0:03:08.6]} 9... O-O {[%clk 0:03:09.8]} 10.
Qe2 {[%clk 0:03:05.5]} 10... a6 {[%clk 0:03:07.4]} 11. O-O-O {[%clk 0:03:05.8]}
11... Nxd4 {[%clk 0:03:07.5]} 12. Bxd4 {[%clk 0:03:05.7]} 12... b5 {[%clk
0:03:08.4]} 13. f4 {[%clk 0:02:57.7]} 13... Qa5 {[%clk 0:03:08.4]} 14. Kb1
{[%clk 0:02:57.9]} 14... b4 {[%clk 0:03:08.6]} 15. Nd5 {[%clk 0:02:46]} 15...
exd5 {[%clk 0:03:09.8]} 16. exd5 {[%clk 0:02:47.8]} 16... Bd8 {[%clk 0:03:07.7]}
17. h5 {[%clk 0:02:42.6]} 17... Bb7 {[%clk 0:03:04.8]} 18. Bg2 {[%clk
0:02:39.2]} 18... Bb6 {[%clk 0:03:04.6]} 19. Bxg7 {[%clk 0:02:30.7]} 19... Kxg7
{[%clk 0:03:02.6]} 20. h6+ {[%clk 0:02:31.7]} 20... Kg8 {[%clk 0:02:55.9]} 21.
Qe7 {[%clk 0:02:25.8]} 21... Rae8 {[%clk 0:02:41.3]} 22. Qxd7 {[%clk 0:02:26.4]}
22... Bc8 {[%clk 0:02:42.8]} 23. Qxd6 {[%clk 0:02:27]} 23... Bd8 {[%clk
0:02:35.1]} 24. Qc6 {[%clk 0:02:17.9]} 24... Bf5 {[%clk 0:02:25.8]} 25. Bh3
{[%clk 0:01:54.6]} 25... Bxh3 {[%clk 0:02:22.2]} 26. Rxh3 {[%clk 0:01:55.5]}
26... Qb5 {[%clk 0:02:18.6]} 27. Qc8 {[%clk 0:01:26.8]} 27... Qe2 {[%clk
0:02:11.7]} 28. Rhd3 {[%clk 0:01:23.1]} 28... Qf2 {[%clk 0:01:13.9]} 29. Qf5
{[%clk 0:01:11.4]} 29... Re2 {[%clk 0:01:08.8]} 30. Rh3 {[%clk 0:00:47.9]} 30...
Rd2 {[%clk 0:00:55.8]} 31. Rc1 {[%clk 0:00:30.3]} 31... Re8 {[%clk 0:00:46.9]}
32. Qd7 {[%clk 0:00:17.8]} 32... Rde2 {[%clk 0:00:47.6]} 33. g6 {[%clk
0:00:18.6]} 33... hxg6 {[%clk 0:00:37.4]} 34. h7+ {[%clk 0:00:19.7]} 34... Kh8
{[%clk 0:00:27.3]} 35. Qxf7 {[%clk 0:00:11.5]} 35... Re1 {[%clk 0:00:27.6]} 0-1

[Event "*** Titled Tuesday Blitz"]
[Site "Chess.com"]
[Date "2018.04.03"]
[Round "9"]
[White "Chesscoach_Golichenko"]
[Black "BogdanDeac"]
[Result "0-1"]
[WhiteElo "2494"]
[BlackElo "2692"]
[TimeControl "180+2"]
[EndTime "14:59:17 PDT"]
[Termination "BogdanDeac won by resignation"]

1. d4 {[%clk 0:03:01.8]} 1... d6 {[%clk 0:02:59.9]} 2. c4 {[%clk 0:03:00.8]}
2... e5 {[%clk 0:03:00.5]} 3. e3 {[%clk 0:03:01.4]} 3... g6 {[%clk 0:03:00.8]}
4. Nc3 {[%clk 0:03:00.6]} 4... Bg7 {[%clk 0:03:01.5]} 5. Nge2 {[%clk 0:03:01.7]}
5... Nc6 {[%clk 0:03:02.2]} 6. d5 {[%clk 0:03:01.8]} 6... Nce7 {[%clk
0:03:03.1]} 7. g3 {[%clk 0:03:02.6]} 7... h5 {[%clk 0:03:02.7]} 8. h4 {[%clk
0:03:01.1]} 8... f5 {[%clk 0:03:01.3]} 9. e4 {[%clk 0:03:01]} 9... Nf6 {[%clk
0:03:00.8]} 10. Bg2 {[%clk 0:03:00.6]} 10... O-O {[%clk 0:03:01.3]} 11. Bg5
{[%clk 0:03:01.2]} 11... Bd7 {[%clk 0:02:56.1]} 12. Qd2 {[%clk 0:02:59]} 12...
a6 {[%clk 0:02:56.9]} 13. O-O-O {[%clk 0:02:56.9]} 13... b5 {[%clk 0:02:57.7]}
14. c5 {[%clk 0:02:58]} 14... b4 {[%clk 0:02:57.5]} 15. Nb1 {[%clk 0:02:38.9]}
15... Nxe4 {[%clk 0:02:54.1]} 16. Bxe4 {[%clk 0:02:35.5]} 16... fxe4 {[%clk
0:02:56]} 17. c6 {[%clk 0:01:56.1]} 17... Bg4 {[%clk 0:02:55.9]} 18. Qe3 {[%clk
0:01:54.8]} 18... Rf3 {[%clk 0:02:45.8]} 19. Qxe4 {[%clk 0:01:51.8]} 19... Rxf2
{[%clk 0:02:46.6]} 20. Rhe1 {[%clk 0:01:39.4]} 20... Qf8 {[%clk 0:02:46.1]} 21.
Nd2 {[%clk 0:01:26]} 21... Nf5 {[%clk 0:02:46.8]} 22. Qd3 {[%clk 0:00:55.2]}
22... Qf7 {[%clk 0:02:03.6]} 23. Ne4 {[%clk 0:00:53.2]} 23... Rf3 {[%clk
0:02:03.4]} 24. Qd2 {[%clk 0:00:53]} 24... Nd4 {[%clk 0:01:48.1]} 25. Nxd4
{[%clk 0:00:46]} 25... exd4 {[%clk 0:01:48.4]} 26. Qxb4 {[%clk 0:00:46.9]} 26...
Qxd5 {[%clk 0:01:45.7]} 27. Nc3 {[%clk 0:00:21.3]} 27... Rxc3+ {[%clk
0:01:22.6]} 28. bxc3 {[%clk 0:00:21.2]} 28... Bxd1 {[%clk 0:01:23.1]} 29. Rxd1
{[%clk 0:00:21.5]} 29... Qxc6 {[%clk 0:01:24]} 30. Rxd4 {[%clk 0:00:11.6]} 30...
Bxd4 {[%clk 0:01:23.7]} 31. Qxd4 {[%clk 0:00:13.5]} 31... Rf8 {[%clk 0:01:24.5]}
32. Bh6 {[%clk 0:00:11.4]} 32... Rf1+ {[%clk 0:01:21.1]} 33. Kc2 {[%clk
0:00:09.8]} 33... Qg2+ {[%clk 0:01:21]} 34. Bd2 {[%clk 0:00:03.6]} 34... Qxg3
{[%clk 0:01:12.1]} 35. Qc4+ {[%clk 0:00:04.4]} 35... Rf7 {[%clk 0:01:11.7]} 36.
Qxa6 {[%clk 0:00:04.8]} 36... Qxh4 {[%clk 0:01:09.8]} 37. Qc8+ {[%clk
0:00:05.3]} 37... Kh7 {[%clk 0:01:09.5]} 38. Be3 {[%clk 0:00:06.3]} 38... Qe4+
{[%clk 0:01:09.9]} 39. Kd2 {[%clk 0:00:07.4]} 39... Qd5+ {[%clk 0:01:10.3]} 40.
Ke1 {[%clk 0:00:07.3]} 40... Re7 {[%clk 0:01:05.6]} 41. Kf2 {[%clk 0:00:02.8]}
41... Qxa2+ {[%clk 0:00:58.9]} 0-1

[Event "*** Titled Tuesday Blitz"]
[Site "Chess.com"]
[Date "2018.04.03"]
[Round "9"]
[White "gkchesstiger"]
[Black "lachesisQ"]
[Result "1/2-1/2"]
[WhiteElo "2788"]
[BlackElo "2895"]
[TimeControl "180+2"]
[EndTime "14:59:20 PDT"]
[Termination "Game drawn by repetition"]

1. d4 {[%clk 0:03:01.9]} 1... Nf6 {[%clk 0:03:00.8]} 2. Nf3 {[%clk 0:03:03.1]}
2... g6 {[%clk 0:03:02.2]} 3. Bf4 {[%clk 0:03:04.1]} 3... Bg7 {[%clk 0:03:03.8]}
4. c3 {[%clk 0:03:05.4]} 4... O-O {[%clk 0:03:04.9]} 5. Nbd2 {[%clk 0:03:05.6]}
5... d6 {[%clk 0:03:05.8]} 6. h3 {[%clk 0:03:06.8]} 6... b6 {[%clk 0:03:06]} 7.
e4 {[%clk 0:03:07.8]} 7... Bb7 {[%clk 0:03:07.1]} 8. Qc2 {[%clk 0:03:04.9]} 8...
c5 {[%clk 0:03:05.3]} 9. d5 {[%clk 0:03:01.6]} 9... e6 {[%clk 0:03:01.3]} 10.
dxe6 {[%clk 0:03:01.8]} 10... fxe6 {[%clk 0:03:02.2]} 11. Bg5 {[%clk 0:02:50.2]}
11... Nbd7 {[%clk 0:02:57.9]} 12. e5 {[%clk 0:02:34.4]} 12... Nxe5 {[%clk
0:02:51.6]} 13. Nxe5 {[%clk 0:02:35.5]} 13... dxe5 {[%clk 0:02:53.5]} 14. O-O-O
{[%clk 0:02:31.9]} 14... Qc7 {[%clk 0:02:52.3]} 15. f3 {[%clk 0:02:26.6]} 15...
Rad8 {[%clk 0:02:49.2]} 16. h4 {[%clk 0:02:12.3]} 16... Qf7 {[%clk 0:02:23.9]}
17. Bd3 {[%clk 0:02:06.8]} 17... Rd7 {[%clk 0:02:11.9]} 18. Bxf6 {[%clk
0:02:02.3]} 18... Bxf6 {[%clk 0:02:09.1]} 19. Be4 {[%clk 0:01:57.9]} 19... Ba6
{[%clk 0:02:09.6]} 20. Qa4 {[%clk 0:01:52.6]} 20... Be2 {[%clk 0:02:03.3]} 21.
Rde1 {[%clk 0:01:51.2]} 21... Bd3 {[%clk 0:01:59.6]} 22. Bxd3 {[%clk 0:01:50.4]}
22... Rxd3 {[%clk 0:02:01.5]} 23. Ne4 {[%clk 0:01:49.4]} 23... Bg7 {[%clk
0:02:02.8]} 24. Kb1 {[%clk 0:01:47.2]} 24... Rd5 {[%clk 0:01:59.4]} 25. Qc6
{[%clk 0:01:43.6]} 25... h6 {[%clk 0:02:00.1]} 26. a4 {[%clk 0:01:36.1]} 26...
Rfd8 {[%clk 0:01:59]} 27. Qb5 {[%clk 0:01:34.2]} 27... Qc7 {[%clk 0:01:51.5]}
28. h5 {[%clk 0:01:26.1]} 28... g5 {[%clk 0:01:52.4]} 29. Qc4 {[%clk 0:01:26.3]}
29... Qb7 {[%clk 0:01:50.4]} 30. Qb3 {[%clk 0:01:04.5]} 30... a6 {[%clk
0:01:50.6]} 31. Rd1 {[%clk 0:00:58.7]} 31... Qc6 {[%clk 0:01:49]} 32. c4 {[%clk
0:00:58.5]} 32... Rd4 {[%clk 0:01:48.7]} 33. Qc2 {[%clk 0:00:58]} 33... Rb8
{[%clk 0:01:34.5]} 34. Rxd4 {[%clk 0:00:30.1]} 34... exd4 {[%clk 0:01:33.5]} 35.
Nxg5 {[%clk 0:00:31.4]} 35... hxg5 {[%clk 0:01:29.9]} 36. h6 {[%clk 0:00:32.6]}
36... Be5 {[%clk 0:01:30.8]} 37. Qg6+ {[%clk 0:00:32]} 37... Kh8 {[%clk
0:01:31.9]} 38. Qxg5 {[%clk 0:00:31.5]} 38... Qc7 {[%clk 0:01:26.4]} 39. Re1
{[%clk 0:00:31.7]} 39... Bd6 {[%clk 0:00:42.3]} 40. Qf6+ {[%clk 0:00:22.5]}
40... Kh7 {[%clk 0:00:42.2]} 41. Rxe6 {[%clk 0:00:23.3]} 41... Bf8 {[%clk
0:00:37.2]} 42. Qf5+ {[%clk 0:00:24.4]} 42... Kh8 {[%clk 0:00:38.3]} 43. Qf6+
{[%clk 0:00:25.6]} 43... Kh7 {[%clk 0:00:35.2]} 44. Qf5+ {[%clk 0:00:26.9]}
44... Kh8 {[%clk 0:00:36.5]} 45. Qf6+ {[%clk 0:00:28.1]} 45... Kg8 {[%clk
0:00:35.1]} 46. Qg6+ {[%clk 0:00:28.8]} 46... Kh8 {[%clk 0:00:36.2]} 47. Qf6+
{[%clk 0:00:30.1]} 47... Kh7 {[%clk 0:00:36.7]} 48. Qf5+ {[%clk 0:00:31.3]}
48... Kh8 {[%clk 0:00:38.1]} 49. Qf6+ {[%clk 0:00:32.3]} 49... Kh7 {[%clk
0:00:39.4]} 1/2-1/2

[Event "*** Titled Tuesday Blitz"]
[Site "Chess.com"]
[Date "2018.04.03"]
[Round "9"]
[White "maximlavrov"]
[Black "ZapataCharlesS"]
[Result "1-0"]
[WhiteElo "2437"]
[BlackElo "2659"]
[TimeControl "180+2"]
[EndTime "14:59:21 PDT"]
[Termination "maximlavrov won by resignation"]

1. g3 {[%clk 0:02:57.4]} 1... d5 {[%clk 0:03:00.6]} 2. Nf3 {[%clk 0:02:58.2]}
2... c6 {[%clk 0:03:02.5]} 3. Bg2 {[%clk 0:02:59.5]} 3... Nf6 {[%clk 0:03:02.5]}
4. O-O {[%clk 0:03:01.4]} 4... Bg4 {[%clk 0:03:02.3]} 5. c4 {[%clk 0:03:02.3]}
5... Nbd7 {[%clk 0:02:57.9]} 6. d3 {[%clk 0:02:53.7]} 6... e6 {[%clk 0:02:55.4]}
7. b3 {[%clk 0:02:53.1]} 7... Bd6 {[%clk 0:02:52.5]} 8. Bb2 {[%clk 0:02:53.1]}
8... O-O {[%clk 0:02:53.9]} 9. Nbd2 {[%clk 0:02:54.1]} 9... e5 {[%clk
0:02:50.3]} 10. h3 {[%clk 0:02:53.7]} 10... Be6 {[%clk 0:02:51]} 11. Ng5 {[%clk
0:02:53.6]} 11... Qe7 {[%clk 0:02:46.8]} 12. Nxe6 {[%clk 0:02:52.9]} 12... fxe6
{[%clk 0:02:48.7]} 13. a3 {[%clk 0:02:53.4]} 13... a5 {[%clk 0:02:48.4]} 14. e3
{[%clk 0:02:43.3]} 14... Rad8 {[%clk 0:02:48.6]} 15. Qe2 {[%clk 0:02:44.2]}
15... h6 {[%clk 0:02:33.1]} 16. Rfe1 {[%clk 0:02:27.2]} 16... Qf7 {[%clk
0:02:27.7]} 17. Bc3 {[%clk 0:02:26]} 17... Ra8 {[%clk 0:02:20.1]} 18. b4 {[%clk
0:02:24.4]} 18... Bc7 {[%clk 0:02:15.4]} 19. Rec1 {[%clk 0:02:22.2]} 19... Qg6
{[%clk 0:02:16.1]} 20. e4 {[%clk 0:02:20.9]} 20... d4 {[%clk 0:02:14.1]} 21. Bb2
{[%clk 0:02:22.1]} 21... c5 {[%clk 0:02:16]} 22. b5 {[%clk 0:02:18.2]} 22... a4
{[%clk 0:02:17.2]} 23. Nf3 {[%clk 0:02:16.1]} 23... Nh7 {[%clk 0:02:18]} 24. Rf1
{[%clk 0:02:09.8]} 24... Rf7 {[%clk 0:02:11.4]} 25. Bc1 {[%clk 0:02:00.1]} 25...
Raf8 {[%clk 0:02:03.8]} 26. Bd2 {[%clk 0:02:01.3]} 26... Bd8 {[%clk 0:02:00.6]}
27. Nh2 {[%clk 0:01:57]} 27... Bg5 {[%clk 0:01:57.6]} 28. Be1 {[%clk 0:01:58.3]}
28... h5 {[%clk 0:01:53.9]} 29. h4 {[%clk 0:01:59.7]} 29... Bh6 {[%clk
0:01:51.9]} 30. Qd1 {[%clk 0:02:00.7]} 30... Ra8 {[%clk 0:01:48.5]} 31. Ra2
{[%clk 0:01:59.8]} 31... b6 {[%clk 0:01:45.4]} 32. Kh1 {[%clk 0:02:00.7]} 32...
Rff8 {[%clk 0:01:42.1]} 33. Bh3 {[%clk 0:01:57.5]} 33... Kh8 {[%clk 0:01:38]}
34. Rg1 {[%clk 0:01:58.7]} 34... Qf7 {[%clk 0:01:35.8]} 35. Qe2 {[%clk
0:01:57.1]} 35... Ndf6 {[%clk 0:01:36.7]} 36. Rf1 {[%clk 0:01:55.4]} 36... Ng8
{[%clk 0:01:33.7]} 37. Bg2 {[%clk 0:01:51.9]} 37... Ne7 {[%clk 0:01:34.7]} 38.
Nf3 {[%clk 0:01:49.4]} 38... Qf6 {[%clk 0:01:35.9]} 39. Kg1 {[%clk 0:01:49.9]}
39... Rg8 {[%clk 0:01:33.8]} 40. Qd1 {[%clk 0:01:47.8]} 40... Rgf8 {[%clk
0:01:32.3]} 41. Kh2 {[%clk 0:01:45.4]} 41... g6 {[%clk 0:01:33.3]} 42. Ng1
{[%clk 0:01:44.3]} 42... Qg7 {[%clk 0:01:31.6]} 43. Nh3 {[%clk 0:01:43.7]} 43...
Ng8 {[%clk 0:01:32.9]} 44. f4 {[%clk 0:01:36.9]} 44... exf4 {[%clk 0:01:34.8]}
45. gxf4 {[%clk 0:01:38]} 45... e5 {[%clk 0:01:32]} 46. fxe5 {[%clk 0:01:29.2]}
46... Rxf1 {[%clk 0:01:33.9]} 47. Bxf1 {[%clk 0:01:30.3]} 47... Qxe5+ {[%clk
0:01:35.2]} 48. Bg3 {[%clk 0:01:31.6]} 48... Qe7 {[%clk 0:01:37.1]} 49. Rg2
{[%clk 0:01:23.8]} 49... Ngf6 {[%clk 0:01:37.9]} 50. Be2 {[%clk 0:01:24.2]}
50... Rf8 {[%clk 0:01:34.6]} 51. Qxa4 {[%clk 0:01:24.8]} 51... Ng4+ {[%clk
0:01:31.6]} 52. Kh1 {[%clk 0:01:25.7]} 52... Ne3 {[%clk 0:01:32.9]} 53. Rf2
{[%clk 0:01:25.9]} 53... Nf6 {[%clk 0:01:30.5]} 54. Nf4 {[%clk 0:01:10.7]} 54...
Kh7 {[%clk 0:01:24]} 55. Kg1 {[%clk 0:01:09.7]} 55... Qd7 {[%clk 0:01:24.6]} 56.
e5 {[%clk 0:01:08.9]} 56... Nfg4 {[%clk 0:01:20.4]} 57. e6 {[%clk 0:01:07.7]}
57... Qe7 {[%clk 0:01:18]} 58. Bxg4 {[%clk 0:01:07.5]} 58... Nxg4 {[%clk
0:01:19.9]} 59. Nd5 {[%clk 0:01:02.9]} 59... Qxe6 {[%clk 0:01:18.5]} 60. Qa7+
{[%clk 0:01:04.4]} 60... Kh8 {[%clk 0:01:16.2]} 61. Rxf8+ {[%clk 0:01:05.3]}
61... Bxf8 {[%clk 0:01:18.1]} 62. Qb8 {[%clk 0:01:06.7]} 62... Qf7 {[%clk
0:01:14.6]} 63. Qf4 {[%clk 0:01:02.8]} 63... g5 {[%clk 0:01:16.1]} 1-0

[Event "*** Titled Tuesday Blitz"]
[Site "Chess.com"]
[Date "2018.04.03"]
[Round "9"]
[White "Konavets"]
[Black "AkshatChandra"]
[Result "1/2-1/2"]
[WhiteElo "2780"]
[BlackElo "2820"]
[TimeControl "180+2"]
[EndTime "14:59:27 PDT"]
[Termination "Game drawn by agreement"]

1. d4 {[%clk 0:03:01.9]} 1... Nf6 {[%clk 0:03:00.9]} 2. Bf4 {[%clk 0:03:02.3]}
2... d5 {[%clk 0:03:01.6]} 3. e3 {[%clk 0:03:03.4]} 3... e6 {[%clk 0:03:03.1]}
4. Nf3 {[%clk 0:03:04.7]} 4... c5 {[%clk 0:03:04.6]} 5. c3 {[%clk 0:03:05.4]}
5... Nc6 {[%clk 0:03:06.1]} 6. Nbd2 {[%clk 0:03:05.6]} 6... Bd6 {[%clk
0:03:07.4]} 7. Bg3 {[%clk 0:03:07.1]} 7... O-O {[%clk 0:03:08.6]} 8. Bb5 {[%clk
0:03:08.1]} 8... Ne7 {[%clk 0:03:09]} 9. Bd3 {[%clk 0:03:08.2]} 9... c4 {[%clk
0:03:10.4]} 10. Bb1 {[%clk 0:03:00.4]} 10... b5 {[%clk 0:03:11]} 11. Qc2 {[%clk
0:02:41.8]} 11... Bb7 {[%clk 0:03:06.1]} 12. Bxd6 {[%clk 0:02:31.3]} 12... Qxd6
{[%clk 0:03:06.8]} 13. Ne5 {[%clk 0:02:33.2]} 13... Rfc8 {[%clk 0:02:50.4]} 14.
O-O {[%clk 0:02:29.9]} 14... g6 {[%clk 0:02:42.4]} 15. Qd1 {[%clk 0:02:20.5]}
15... Kg7 {[%clk 0:02:35.8]} 16. Qf3 {[%clk 0:02:11]} 16... Rf8 {[%clk
0:02:26.2]} 17. a4 {[%clk 0:01:38.7]} 17... a6 {[%clk 0:02:14.1]} 18. axb5
{[%clk 0:01:11.6]} 18... axb5 {[%clk 0:02:16]} 19. Rxa8 {[%clk 0:01:12.2]} 19...
Rxa8 {[%clk 0:02:11.5]} 20. e4 {[%clk 0:01:13.1]} 20... dxe4 {[%clk 0:01:54.9]}
21. Bxe4 {[%clk 0:01:13]} 21... Bd5 {[%clk 0:01:55.3]} 22. g4 {[%clk 0:00:58.8]}
22... Rf8 {[%clk 0:01:52.5]} 23. g5 {[%clk 0:00:53.8]} 23... Nxe4 {[%clk
0:01:34.2]} 24. Nxe4 {[%clk 0:00:53.9]} 24... Bxe4 {[%clk 0:01:35.6]} 25. Qxe4
{[%clk 0:00:28.7]} 25... Qd5 {[%clk 0:01:36.2]} 26. Qxd5 {[%clk 0:00:27]} 26...
Nxd5 {[%clk 0:01:36.7]} 27. Ra1 {[%clk 0:00:28.9]} 27... h6 {[%clk 0:01:33.1]}
28. h4 {[%clk 0:00:26.9]} 28... hxg5 {[%clk 0:01:34]} 29. hxg5 {[%clk
0:00:28.8]} 29... b4 {[%clk 0:01:30.2]} 30. cxb4 {[%clk 0:00:25.2]} 30... Nxb4
{[%clk 0:01:27.2]} 31. Ra7 {[%clk 0:00:26.1]} 31... Nd3 {[%clk 0:01:13.9]} 32.
Nxc4 {[%clk 0:00:23.9]} 32... Rd8 {[%clk 0:01:14.9]} 33. Ne5 {[%clk 0:00:18.4]}
33... Nxe5 {[%clk 0:01:16.3]} 34. dxe5 {[%clk 0:00:20.3]} 34... Rd5 {[%clk
0:01:17.6]} 35. Ra3 {[%clk 0:00:08.1]} 35... Rxe5 {[%clk 0:01:05.4]} 36. Rg3
{[%clk 0:00:09.1]} 36... Re1+ {[%clk 0:01:01.6]} 37. Kg2 {[%clk 0:00:10.2]}
37... Rb1 {[%clk 0:01:03.5]} 38. b3 {[%clk 0:00:11.5]} 38... Kf8 {[%clk
0:01:04.8]} 39. Re3 {[%clk 0:00:12.1]} 39... Ke7 {[%clk 0:01:06.2]} 40. f4
{[%clk 0:00:13.3]} 40... Kd6 {[%clk 0:01:06.8]} 41. Rd3+ {[%clk 0:00:14.5]}
41... Ke7 {[%clk 0:01:06.3]} 42. Kf3 {[%clk 0:00:15.7]} 42... f6 {[%clk
0:01:05.3]} 43. gxf6+ {[%clk 0:00:17]} 43... Kxf6 {[%clk 0:01:07.2]} 44. Ke4
{[%clk 0:00:18.3]} 44... Re1+ {[%clk 0:01:07.1]} 45. Re3 {[%clk 0:00:19.3]}
45... Rb1 {[%clk 0:01:05.8]} 46. Rd3 {[%clk 0:00:20.6]} 1/2-1/2